[Event "*** Titled Tuesday 3|2 Blitz"]
[Site "Chess.com"]
[Date "2016.06.07"]
[Round "5"]
[White "Indianlad"]
[Black "GianmarcoVaR"]
[Result "1-0"]
[WhiteElo "2528"]
[BlackElo "2335"]
[TimeControl "180+2"]
[EndTime "12:00:58 PDT"]
[Termination "Indianlad won by resignation"]

1. e4 {[%clk 0:03:01.3]} 1... c6 {[%clk 0:02:59]} 2. d4 {[%clk 0:03:01.9]} 2...
d5 {[%clk 0:03:00.4]} 3. e5 {[%clk 0:03:03.1]} 3... Bf5 {[%clk 0:03:00.8]} 4.
Nf3 {[%clk 0:03:04.7]} 4... e6 {[%clk 0:03:02.2]} 5. Be2 {[%clk 0:03:06.3]} 5...
Ne7 {[%clk 0:03:03.5]} 6. O-O {[%clk 0:03:07.9]} 6... Nc8 {[%clk 0:03:05.1]} 7.
a4 {[%clk 0:03:08.3]} 7... Nd7 {[%clk 0:03:05.3]} 8. c3 {[%clk 0:03:08.8]} 8...
a5 {[%clk 0:03:01]} 9. Na3 {[%clk 0:03:07.2]} 9... Be7 {[%clk 0:02:58]} 10. Nc2
{[%clk 0:03:08]} 10... O-O {[%clk 0:02:52.2]} 11. Re1 {[%clk 0:03:09.5]} 11...
f6 {[%clk 0:02:52.3]} 12. Bd3 {[%clk 0:03:10.6]} 12... Bg4 {[%clk 0:02:48.9]}
13. exf6 {[%clk 0:03:08.5]} 13... Bxf6 {[%clk 0:02:29]} 14. Ne3 {[%clk
0:03:05.9]} 14... Bxf3 {[%clk 0:02:23.9]} 15. Qxf3 {[%clk 0:03:07]} 15... e5
{[%clk 0:02:25.1]} 16. Qh3 {[%clk 0:03:01.2]} 16... e4 {[%clk 0:02:25.8]} 17.
Bc2 {[%clk 0:03:01]} 17... Nd6 {[%clk 0:02:12.8]} 18. f3 {[%clk 0:02:59.5]}
18... Bh4 {[%clk 0:02:03.3]} 19. g3 {[%clk 0:02:50.7]} 19... Bg5 {[%clk
0:01:55.9]} 20. Qe6+ {[%clk 0:02:51.5]} 20... Nf7 {[%clk 0:01:34.7]} 21. fxe4
{[%clk 0:02:52.4]} 21... Re8 {[%clk 0:01:36]} 22. Qh3 {[%clk 0:02:40.8]} 22...
dxe4 {[%clk 0:01:37]} 23. Bb3 {[%clk 0:02:41.9]} 23... Nf6 {[%clk 0:01:36.1]}
24. Rf1 {[%clk 0:02:36.1]} 24... Bxe3+ {[%clk 0:01:30.8]} 25. Bxe3 {[%clk
0:02:34.7]} 25... Nd5 {[%clk 0:01:32.3]} 26. Rf5 {[%clk 0:02:30.7]} 26... Qd7
{[%clk 0:01:25]} 27. Raf1 {[%clk 0:02:27.2]} 27... Re7 {[%clk 0:01:22.6]} 28.
Qh4 {[%clk 0:02:13.5]} 28... g6 {[%clk 0:01:04.3]} 29. Rxd5 {[%clk 0:01:54.4]}
29... cxd5 {[%clk 0:01:04]} 30. Bxd5 {[%clk 0:01:56.3]} 30... Rae8 {[%clk
0:00:33.4]} 31. Bb3 {[%clk 0:01:57]} 31... Qd6 {[%clk 0:00:27.3]} 32. Rf6 {[%clk
0:01:50.8]} 32... Qc7 {[%clk 0:00:16.7]} 33. Qg4 {[%clk 0:01:44.9]} 33... Kg7
{[%clk 0:00:15.4]} 34. Rf2 {[%clk 0:01:46.5]} 34... Nh6 {[%clk 0:00:15.4]} 35.
Bxh6+ {[%clk 0:01:43.1]} 35... Kxh6 {[%clk 0:00:16.1]} 36. Qh4+ {[%clk
0:01:44.7]} 36... Kg7 {[%clk 0:00:15.9]} 37. Qf6+ {[%clk 0:01:46.6]} 37... Kh6
{[%clk 0:00:16.7]} 38. Rf4 {[%clk 0:01:47.4]} 38... Qxf4 {[%clk 0:00:15]} 39.
Qxf4+ {[%clk 0:01:48.5]} 39... Kg7 {[%clk 0:00:16]} 40. Qe3 {[%clk 0:01:49.8]}
40... Rf8 {[%clk 0:00:16.5]} 41. d5 {[%clk 0:01:51.3]} 41... Rd8 {[%clk
0:00:15]} 42. Qd4+ {[%clk 0:01:50.5]} 42... Kh6 {[%clk 0:00:13.7]} 43. Qf6
{[%clk 0:01:52]} 43... Rde8 {[%clk 0:00:13.4]} 44. d6 {[%clk 0:01:52.4]} 44...
Re5 {[%clk 0:00:11.5]} 45. d7 {[%clk 0:01:52.4]} 45... e3 {[%clk 0:00:11.3]} 46.
dxe8=Q {[%clk 0:01:51.8]} 46... Rxe8 {[%clk 0:00:12.2]} 47. Qh4+ {[%clk
0:01:48.5]} 1-0

[Event "*** Titled Tuesday 3|2 Blitz"]
[Site "Chess.com"]
[Date "2016.06.07"]
[Round "5"]
[White "underdogchss"]
[Black "alturas_pacificas"]
[Result "1-0"]
[WhiteElo "2335"]
[BlackElo "2169"]
[TimeControl "180+2"]
[EndTime "12:01:13 PDT"]
[Termination "underdogchss won by resignation"]

1. d4 {[%clk 0:02:58.5]} 1... d5 {[%clk 0:02:59.5]} 2. Nf3 {[%clk 0:02:59.7]}
2... Nf6 {[%clk 0:03:00.1]} 3. c4 {[%clk 0:03:01]} 3... c6 {[%clk 0:03:00.9]} 4.
e3 {[%clk 0:03:01.7]} 4... e6 {[%clk 0:03:00.1]} 5. b3 {[%clk 0:03:02.9]} 5...
Nbd7 {[%clk 0:03:00.8]} 6. Bd3 {[%clk 0:03:03.2]} 6... Be7 {[%clk 0:02:59.4]} 7.
Nc3 {[%clk 0:03:03.2]} 7... b6 {[%clk 0:03:00.9]} 8. O-O {[%clk 0:03:03.1]} 8...
Bb7 {[%clk 0:03:02.4]} 9. Qe2 {[%clk 0:03:03.7]} 9... O-O {[%clk 0:03:02.3]} 10.
Bb2 {[%clk 0:03:04.8]} 10... c5 {[%clk 0:02:57.3]} 11. cxd5 {[%clk 0:02:56.6]}
11... Nxd5 {[%clk 0:02:55.1]} 12. Nxd5 {[%clk 0:02:57.6]} 12... Bxd5 {[%clk
0:02:55.3]} 13. Rfd1 {[%clk 0:02:25.4]} 13... cxd4 {[%clk 0:02:54.4]} 14. Nxd4
{[%clk 0:02:25.4]} 14... Nf6 {[%clk 0:02:23.4]} 15. Ba6 {[%clk 0:02:01.4]} 15...
Qb8 {[%clk 0:02:13.5]} 16. Rac1 {[%clk 0:01:57]} 16... Bb7 {[%clk 0:02:06.1]}
17. Nc6 {[%clk 0:01:51.6]} 17... Bxc6 {[%clk 0:01:58.9]} 18. Rxc6 {[%clk
0:01:53.2]} 18... Rd8 {[%clk 0:01:57.6]} 19. Rdc1 {[%clk 0:01:51.3]} 19... Nd5
{[%clk 0:01:44]} 20. a3 {[%clk 0:01:26.6]} 20... Bf6 {[%clk 0:01:37]} 21. Bxf6
{[%clk 0:01:22.7]} 21... Nxf6 {[%clk 0:01:35.4]} 22. Rc7 {[%clk 0:01:17.8]}
22... Nd5 {[%clk 0:01:31.3]} 23. R7c2 {[%clk 0:01:09.9]} 23... Qe5 {[%clk
0:01:27.2]} 24. g3 {[%clk 0:01:08.6]} 24... g6 {[%clk 0:01:08.9]} 25. Qf3 {[%clk
0:01:04.7]} 25... Qf6 {[%clk 0:01:02.3]} 26. Kg2 {[%clk 0:00:56.6]} 26... Qxf3+
{[%clk 0:01:01.5]} 27. Kxf3 {[%clk 0:00:57.8]} 27... Kf8 {[%clk 0:01:02]} 28. e4
{[%clk 0:00:57.9]} 28... Nf6 {[%clk 0:00:54.1]} 29. h3 {[%clk 0:00:54.1]} 29...
Nd7 {[%clk 0:00:51.5]} 30. b4 {[%clk 0:00:52.3]} 30... Ne5+ {[%clk 0:00:52.3]}
31. Ke3 {[%clk 0:00:53.2]} 31... Ke7 {[%clk 0:00:29.2]} 32. f4 {[%clk
0:00:52.4]} 32... Nd7 {[%clk 0:00:28.4]} 33. Rc7 {[%clk 0:00:53.2]} 33... f6
{[%clk 0:00:20.4]} 34. Rd1 {[%clk 0:00:49.4]} 34... e5 {[%clk 0:00:04.7]} 35.
fxe5 {[%clk 0:00:48.4]} 35... fxe5 {[%clk 0:00:06]} 36. Bb5 {[%clk 0:00:49.3]}
1-0

[Event "*** Titled Tuesday 3|2 Blitz"]
[Site "Chess.com"]
[Date "2016.06.07"]
[Round "5"]
[White "lukas_111111"]
[Black "Masterbeaterr"]
[Result "1-0"]
[WhiteElo "2230"]
[BlackElo "2328"]
[TimeControl "180+2"]
[EndTime "12:01:32 PDT"]
[Termination "lukas_111111 won by resignation"]

1. e4 {[%clk 0:03:01.9]} 1... e5 {[%clk 0:03:01]} 2. Nf3 {[%clk 0:03:02.8]} 2...
Nc6 {[%clk 0:03:02.2]} 3. Bc4 {[%clk 0:03:03.2]} 3... Nf6 {[%clk 0:03:02.2]} 4.
Ng5 {[%clk 0:03:00.1]} 4... d5 {[%clk 0:03:02.7]} 5. exd5 {[%clk 0:03:01]} 5...
Na5 {[%clk 0:03:04]} 6. Bb5+ {[%clk 0:03:02.4]} 6... c6 {[%clk 0:03:05.7]} 7.
dxc6 {[%clk 0:03:03.2]} 7... bxc6 {[%clk 0:03:07.6]} 8. Be2 {[%clk 0:03:03.7]}
8... h6 {[%clk 0:03:07.7]} 9. Nh3 {[%clk 0:03:04.5]} 9... Bc5 {[%clk 0:03:06.8]}
10. O-O {[%clk 0:03:04.7]} 10... O-O {[%clk 0:03:07]} 11. d3 {[%clk 0:03:05.1]}
11... Bxh3 {[%clk 0:03:05.1]} 12. gxh3 {[%clk 0:03:05.5]} 12... Nd5 {[%clk
0:03:04.7]} 13. c3 {[%clk 0:03:01.5]} 13... Bb6 {[%clk 0:02:59.3]} 14. Bf3
{[%clk 0:02:50.4]} 14... Qh4 {[%clk 0:02:57.4]} 15. Bg2 {[%clk 0:02:46.9]} 15...
Rfe8 {[%clk 0:02:51.4]} 16. Na3 {[%clk 0:02:42.9]} 16... Re6 {[%clk 0:02:51.3]}
17. b4 {[%clk 0:02:20.9]} 17... Nxc3 {[%clk 0:02:36.9]} 18. Qg4 {[%clk 0:02:14]}
18... Qxg4 {[%clk 0:02:24.5]} 19. hxg4 {[%clk 0:02:14.4]} 19... Nb7 {[%clk
0:02:25.7]} 20. Re1 {[%clk 0:01:59.1]} 20... Bd4 {[%clk 0:02:24.5]} 21. Nc2
{[%clk 0:01:57.4]} 21... Rae8 {[%clk 0:02:11.6]} 22. Bd2 {[%clk 0:01:47.2]}
22... Nd5 {[%clk 0:02:06.7]} 23. Nxd4 {[%clk 0:01:43.1]} 23... exd4 {[%clk
0:02:05.9]} 24. b5 {[%clk 0:01:42.4]} 24... Nc5 {[%clk 0:01:54.6]} 25. bxc6
{[%clk 0:01:40.1]} 25... Nc7 {[%clk 0:01:50.8]} 26. Ba5 {[%clk 0:01:24.4]} 26...
Nb5 {[%clk 0:01:30.5]} 27. Rxe6 {[%clk 0:01:16.7]} 27... fxe6 {[%clk 0:01:22.4]}
28. a4 {[%clk 0:00:51.7]} 28... Nc3 {[%clk 0:01:16.7]} 29. c7 {[%clk 0:00:49.8]}
29... Nb3 {[%clk 0:01:17.6]} 30. Bc6 {[%clk 0:00:25]} 30... Rc8 {[%clk
0:01:13.1]} 31. Bd7 {[%clk 0:00:25.6]} 31... Rxc7 {[%clk 0:01:10.4]} 32. Bxe6+
{[%clk 0:00:23.5]} 32... Kf8 {[%clk 0:01:10]} 33. Bxb3 {[%clk 0:00:21.8]} 33...
Rc6 {[%clk 0:01:02.6]} 34. Bb4+ {[%clk 0:00:21.4]} 34... Ke8 {[%clk 0:01:00.8]}
35. Re1+ {[%clk 0:00:22]} 35... Kd8 {[%clk 0:01:01.2]} 36. Re6 {[%clk
0:00:20.3]} 36... Rxe6 {[%clk 0:00:57.6]} 37. Bxe6 {[%clk 0:00:20.5]} 37... Nxa4
{[%clk 0:00:59.5]} 38. Bf8 {[%clk 0:00:20.6]} 38... Nb2 {[%clk 0:00:57]} 39.
Bxg7 {[%clk 0:00:18.1]} 39... Nxd3 {[%clk 0:00:58.2]} 40. Bxd4 {[%clk
0:00:18.9]} 40... Nf4 {[%clk 0:00:59.1]} 41. Bc4 {[%clk 0:00:18.1]} 41... Ke7
{[%clk 0:00:57.6]} 42. Bxa7 {[%clk 0:00:18.6]} 42... Kf6 {[%clk 0:00:59.1]} 43.
Bd4+ {[%clk 0:00:18.3]} 43... Kg6 {[%clk 0:00:59.9]} 44. Be3 {[%clk 0:00:18.3]}
1-0

[Event "*** Titled Tuesday 3|2 Blitz"]
[Site "Chess.com"]
[Date "2016.06.07"]
[Round "5"]
[White "howitzer14"]
[Black "pKiLz5Rn9b"]
[Result "1-0"]
[WhiteElo "2716"]
[BlackElo "2473"]
[TimeControl "180+2"]
[EndTime "12:01:35 PDT"]
[Termination "howitzer14 won by resignation"]

1. e4 {[%clk 0:03:01.9]} 1... e6 {[%clk 0:03:01]} 2. d4 {[%clk 0:03:00.4]} 2...
d5 {[%clk 0:03:01.9]} 3. Nd2 {[%clk 0:03:01.9]} 3... Nf6 {[%clk 0:03:01.4]} 4.
e5 {[%clk 0:03:01.5]} 4... Nfd7 {[%clk 0:03:02.4]} 5. Bd3 {[%clk 0:03:03.4]}
5... c5 {[%clk 0:03:03.4]} 6. c3 {[%clk 0:03:05.3]} 6... Nc6 {[%clk 0:03:05]} 7.
Ne2 {[%clk 0:03:02.6]} 7... cxd4 {[%clk 0:03:03.6]} 8. cxd4 {[%clk 0:03:04.5]}
8... f6 {[%clk 0:03:05.2]} 9. exf6 {[%clk 0:03:05.6]} 9... Nxf6 {[%clk
0:03:07.1]} 10. O-O {[%clk 0:03:03.4]} 10... Bd6 {[%clk 0:03:08.3]} 11. Nf3
{[%clk 0:03:05.3]} 11... Qc7 {[%clk 0:03:09.1]} 12. h3 {[%clk 0:03:05]} 12...
O-O {[%clk 0:03:10]} 13. Be3 {[%clk 0:03:06.9]} 13... Bd7 {[%clk 0:03:11.1]} 14.
Re1 {[%clk 0:03:07.4]} 14... Rae8 {[%clk 0:03:12]} 15. Rc1 {[%clk 0:03:07.5]}
15... Qb8 {[%clk 0:03:11.9]} 16. a3 {[%clk 0:02:59.3]} 16... Re7 {[%clk
0:03:05.8]} 17. b4 {[%clk 0:02:55.9]} 17... a6 {[%clk 0:03:07.1]} 18. Bb1 {[%clk
0:02:41.7]} 18... Be8 {[%clk 0:02:57.7]} 19. Ng3 {[%clk 0:02:20.9]} 19... h6
{[%clk 0:02:22.1]} 20. Ne5 {[%clk 0:02:06.3]} 20... Nxe5 {[%clk 0:02:02.3]} 21.
dxe5 {[%clk 0:02:08.2]} 21... Bxe5 {[%clk 0:02:04]} 22. Bc5 {[%clk 0:02:08.2]}
22... Bd6 {[%clk 0:02:05.4]} 23. Nf5 {[%clk 0:02:07.7]} 23... Bxc5 {[%clk
0:01:58.9]} 24. bxc5 {[%clk 0:01:35.6]} 24... Rd7 {[%clk 0:01:04.9]} 25. Rxe6
{[%clk 0:01:33.9]} 25... Ne4 {[%clk 0:00:43]} 26. Qg4 {[%clk 0:01:18]} 26... h5
{[%clk 0:00:32.1]} 27. Qf3 {[%clk 0:00:50]} 27... Rdf7 {[%clk 0:00:21.3]} 28.
Bxe4 {[%clk 0:00:36.7]} 28... dxe4 {[%clk 0:00:20.7]} 29. Qb3 {[%clk 0:00:38.3]}
29... Qf4 {[%clk 0:00:14.2]} 30. Ne7+ {[%clk 0:00:31.2]} 30... Kh7 {[%clk
0:00:15.3]} 31. Rf1 {[%clk 0:00:26.3]} 31... Qc7 {[%clk 0:00:06.7]} 32. Ng6
{[%clk 0:00:25.6]} 32... Rg8 {[%clk 0:00:06.6]} 33. Qd1 {[%clk 0:00:25.7]} 33...
Rf5 {[%clk 0:00:07.1]} 34. Ne7 {[%clk 0:00:25.9]} 34... Bd7 {[%clk 0:00:03.6]}
35. Nxf5 {[%clk 0:00:25.3]} 1-0

[Event "*** Titled Tuesday 3|2 Blitz"]
[Site "Chess.com"]
[Date "2016.06.07"]
[Round "5"]
[White "Fandorine"]
[Black "dabee"]
[Result "1-0"]
[WhiteElo "2585"]
[BlackElo "2424"]
[TimeControl "180+2"]
[EndTime "12:01:44 PDT"]
[Termination "Fandorine won by resignation"]

1. e4 {[%clk 0:03:01.9]} 1... e5 {[%clk 0:03:00.2]} 2. Nf3 {[%clk 0:03:02.9]}
2... Nc6 {[%clk 0:03:00.9]} 3. d4 {[%clk 0:03:04.2]} 3... exd4 {[%clk
0:03:01.2]} 4. Nxd4 {[%clk 0:03:06.1]} 4... Nf6 {[%clk 0:03:01.3]} 5. Nxc6
{[%clk 0:03:06.9]} 5... bxc6 {[%clk 0:03:01.8]} 6. Qe2 {[%clk 0:03:08.4]} 6...
Qe7 {[%clk 0:02:48.6]} 7. Nc3 {[%clk 0:03:09]} 7... d6 {[%clk 0:02:47.5]} 8. g3
{[%clk 0:03:07]} 8... a5 {[%clk 0:02:31.2]} 9. Bg2 {[%clk 0:03:04.3]} 9... Ba6
{[%clk 0:02:28.6]} 10. Qf3 {[%clk 0:03:05.4]} 10... Nd7 {[%clk 0:02:27.5]} 11.
Bf4 {[%clk 0:02:58.4]} 11... Ne5 {[%clk 0:02:25.3]} 12. Bxe5 {[%clk 0:02:55.6]}
12... Qxe5 {[%clk 0:02:26.1]} 13. Qe3 {[%clk 0:02:57.3]} 13... Rb8 {[%clk
0:02:09.1]} 14. f4 {[%clk 0:02:57.1]} 14... Qh5 {[%clk 0:02:04]} 15. Qa7 {[%clk
0:02:39.6]} 15... Rb6 {[%clk 0:01:43.3]} 16. e5 {[%clk 0:01:59.4]} 16... d5
{[%clk 0:00:56.8]} 17. a3 {[%clk 0:00:32]} 17... Bc5 {[%clk 0:00:50.5]} 18. Qa8+
{[%clk 0:00:22.4]} 18... Ke7 {[%clk 0:00:49.6]} 19. Qxh8 {[%clk 0:00:23.2]}
19... Rxb2 {[%clk 0:00:50.2]} 20. Qxg7 {[%clk 0:00:16.4]} 20... Bd4 {[%clk
0:00:39.4]} 21. Qf6+ {[%clk 0:00:16]} 21... Kf8 {[%clk 0:00:28.2]} 22. Qh8+
{[%clk 0:00:17.1]} 22... Ke7 {[%clk 0:00:29.1]} 23. Qf6+ {[%clk 0:00:18.7]}
23... Kf8 {[%clk 0:00:28.4]} 24. Qd8+ {[%clk 0:00:20.3]} 24... Kg7 {[%clk
0:00:28.2]} 25. Qf6+ {[%clk 0:00:14.5]} 25... Kf8 {[%clk 0:00:29]} 26. Qd8+
{[%clk 0:00:10.3]} 26... Kg7 {[%clk 0:00:28.5]} 27. Qg5+ {[%clk 0:00:11.3]}
27... Qxg5 {[%clk 0:00:28.6]} 28. fxg5 {[%clk 0:00:13.2]} 28... Bxc3+ {[%clk
0:00:26.8]} 29. Kd1 {[%clk 0:00:14.5]} 29... Bxe5 {[%clk 0:00:21.5]} 30. Bf1
{[%clk 0:00:15]} 30... Bb7 {[%clk 0:00:21.2]} 31. Bd3 {[%clk 0:00:15.9]} 31...
c5 {[%clk 0:00:21.9]} 32. Re1 {[%clk 0:00:15.7]} 32... Bc3 {[%clk 0:00:21]} 33.
Re7 {[%clk 0:00:16.8]} 33... c4 {[%clk 0:00:20.8]} 34. Rxc7 {[%clk 0:00:15.3]}
34... cxd3 {[%clk 0:00:20.4]} 35. Rxc3 {[%clk 0:00:15.9]} 1-0

[Event "*** Titled Tuesday 3|2 Blitz"]
[Site "Chess.com"]
[Date "2016.06.07"]
[Round "5"]
[White "GMBenjaminBok"]
[Black "amaidel"]
[Result "0-1"]
[WhiteElo "2590"]
[BlackElo "2466"]
[TimeControl "180+2"]
[EndTime "12:01:53 PDT"]
[Termination "amaidel won on time"]

1. e4 {[%clk 0:03:01.9]} 1... e5 {[%clk 0:02:45.6]} 2. Nf3 {[%clk 0:03:02.6]}
2... Nc6 {[%clk 0:02:46.2]} 3. Bb5 {[%clk 0:03:03.1]} 3... a6 {[%clk 0:02:46.5]}
4. Ba4 {[%clk 0:03:03.9]} 4... Nf6 {[%clk 0:02:47.4]} 5. O-O {[%clk 0:03:04.9]}
5... Nxe4 {[%clk 0:02:48.5]} 6. d4 {[%clk 0:03:05.2]} 6... b5 {[%clk 0:02:49.8]}
7. Bb3 {[%clk 0:03:06.3]} 7... d5 {[%clk 0:02:50.9]} 8. dxe5 {[%clk 0:03:07.6]}
8... Be6 {[%clk 0:02:52.6]} 9. Qe2 {[%clk 0:03:08.4]} 9... Nc5 {[%clk
0:02:52.5]} 10. Rd1 {[%clk 0:03:09]} 10... Nxb3 {[%clk 0:02:49.2]} 11. axb3
{[%clk 0:03:09.6]} 11... Qc8 {[%clk 0:02:48.6]} 12. Nc3 {[%clk 0:03:04.3]} 12...
d4 {[%clk 0:02:43.4]} 13. Nxd4 {[%clk 0:03:01]} 13... Nxd4 {[%clk 0:02:44.2]}
14. Rxd4 {[%clk 0:03:01.2]} 14... Be7 {[%clk 0:02:45]} 15. Be3 {[%clk
0:02:56.2]} 15... O-O {[%clk 0:02:45.6]} 16. Rad1 {[%clk 0:02:44.6]} 16... c5
{[%clk 0:02:43]} 17. Nd5 {[%clk 0:02:38.8]} 17... Bd8 {[%clk 0:02:31.5]} 18.
R4d2 {[%clk 0:02:31.9]} 18... Qc6 {[%clk 0:02:27]} 19. c4 {[%clk 0:02:19.3]}
19... bxc4 {[%clk 0:02:27.4]} 20. Qxc4 {[%clk 0:02:17.2]} 20... Rc8 {[%clk
0:02:14.8]} 21. Rc1 {[%clk 0:02:02.7]} 21... Qb7 {[%clk 0:02:05.5]} 22. Bxc5
{[%clk 0:01:57.2]} 22... Bb6 {[%clk 0:02:02.6]} 23. b4 {[%clk 0:01:49.3]} 23...
Rfd8 {[%clk 0:01:35.2]} 24. Rcd1 {[%clk 0:01:34]} 24... Bxc5 {[%clk 0:00:45.3]}
25. Nf6+ {[%clk 0:00:59.3]} 25... gxf6 {[%clk 0:00:31.7]} 26. Rxd8+ {[%clk
0:00:59.3]} 26... Bf8 {[%clk 0:00:30.5]} 27. Qf4 {[%clk 0:00:58.1]} 27... Rxd8
{[%clk 0:00:14.3]} 28. Rxd8 {[%clk 0:00:37.3]} 28... Qe7 {[%clk 0:00:15]} 29.
Qxf6 {[%clk 0:00:37.6]} 29... Qxb4 {[%clk 0:00:12.1]} 30. Qg5+ {[%clk
0:00:32.1]} 30... Kh8 {[%clk 0:00:13]} 31. h3 {[%clk 0:00:32.2]} 31... h6 {[%clk
0:00:14.2]} 32. Qxh6+ {[%clk 0:00:32.4]} 32... Kg8 {[%clk 0:00:15.6]} 33. Qg5+
{[%clk 0:00:23.3]} 33... Kh7 {[%clk 0:00:15.8]} 34. Qf6 {[%clk 0:00:06.5]} 34...
Bg7 {[%clk 0:00:16.9]} 35. Qh4+ {[%clk 0:00:06.8]} 35... Qxh4 {[%clk 0:00:17.6]}
0-1

[Event "*** Titled Tuesday 3|2 Blitz"]
[Site "Chess.com"]
[Date "2016.06.07"]
[Round "5"]
[White "GMHess"]
[Black "Noukii"]
[Result "1-0"]
[WhiteElo "2580"]
[BlackElo "2642"]
[TimeControl "180+2"]
[EndTime "12:01:58 PDT"]
[Termination "GMHess won by resignation"]

1. c4 {[%clk 0:03:01.9]} 1... Nf6 {[%clk 0:02:59.1]} 2. Nc3 {[%clk 0:03:02.6]}
2... e5 {[%clk 0:02:55.7]} 3. Nf3 {[%clk 0:03:02.9]} 3... Nc6 {[%clk 0:02:56.6]}
4. e3 {[%clk 0:03:04.3]} 4... Bb4 {[%clk 0:02:55.3]} 5. Qc2 {[%clk 0:03:04.9]}
5... O-O {[%clk 0:02:54.3]} 6. Nd5 {[%clk 0:03:05.6]} 6... Re8 {[%clk
0:02:54.7]} 7. Qf5 {[%clk 0:03:06.2]} 7... d6 {[%clk 0:02:55.5]} 8. Nxf6+ {[%clk
0:03:06.3]} 8... Qxf6 {[%clk 0:02:57.4]} 9. Qxf6 {[%clk 0:03:07.4]} 9... gxf6
{[%clk 0:02:59.3]} 10. a3 {[%clk 0:03:08.9]} 10... Bc5 {[%clk 0:02:58.2]} 11. b4
{[%clk 0:03:09.6]} 11... Bb6 {[%clk 0:02:59.2]} 12. Bb2 {[%clk 0:03:03.9]} 12...
a5 {[%clk 0:02:55]} 13. b5 {[%clk 0:03:03.8]} 13... Ne7 {[%clk 0:02:51]} 14. g4
{[%clk 0:02:54.9]} 14... a4 {[%clk 0:02:46.2]} 15. Rg1 {[%clk 0:02:54.3]} 15...
c6 {[%clk 0:02:40.6]} 16. d4 {[%clk 0:02:34.7]} 16... Ba5+ {[%clk 0:02:32.3]}
17. Kd1 {[%clk 0:02:33.6]} 17... cxb5 {[%clk 0:02:32.4]} 18. cxb5 {[%clk
0:02:21.6]} 18... Be6 {[%clk 0:02:33]} 19. Bd3 {[%clk 0:02:11.9]} 19... Bb3+
{[%clk 0:02:15.5]} 20. Ke2 {[%clk 0:02:09.5]} 20... Ng6 {[%clk 0:02:12.1]} 21.
Nd2 {[%clk 0:01:59.2]} 21... Be6 {[%clk 0:01:48.3]} 22. Ne4 {[%clk 0:01:51.5]}
22... Red8 {[%clk 0:01:32.7]} 23. d5 {[%clk 0:01:36.1]} 23... Bc8 {[%clk
0:01:28.2]} 24. Nxf6+ {[%clk 0:01:36.9]} 24... Kg7 {[%clk 0:01:28.8]} 25. Nh5+
{[%clk 0:01:29.4]} 25... Kf8 {[%clk 0:01:29.2]} 26. Rac1 {[%clk 0:01:29.5]}
26... Bd7 {[%clk 0:01:27.2]} 27. Nf6 {[%clk 0:01:30.5]} 27... Ke7 {[%clk
0:01:26.9]} 28. Nxd7 {[%clk 0:01:23.6]} 28... Rxd7 {[%clk 0:01:28.5]} 29. Bf5
{[%clk 0:01:23.6]} 29... Rc7 {[%clk 0:01:30.1]} 30. Rxc7+ {[%clk 0:01:24.2]}
30... Bxc7 {[%clk 0:01:32]} 31. Rc1 {[%clk 0:01:25.7]} 31... Ba5 {[%clk
0:01:33.6]} 32. Rc4 {[%clk 0:01:26.3]} 32... Bb6 {[%clk 0:01:33.7]} 33. Bc2
{[%clk 0:01:19.9]} 33... Ra5 {[%clk 0:01:33.3]} 34. Rxa4 {[%clk 0:01:11.7]}
34... Rxb5 {[%clk 0:01:32.7]} 35. Rb4 {[%clk 0:01:12.2]} 35... Rxb4 {[%clk
0:01:34.1]} 36. axb4 {[%clk 0:01:14.1]} 36... h6 {[%clk 0:01:32.2]} 37. Bxg6
{[%clk 0:00:52]} 37... fxg6 {[%clk 0:01:33.3]} 38. f4 {[%clk 0:00:52.5]} 38...
e4 {[%clk 0:01:25.3]} 39. Bd4 {[%clk 0:00:45.7]} 39... Bd8 {[%clk 0:01:20.4]}
40. Kf2 {[%clk 0:00:28.4]} 40... Kf7 {[%clk 0:01:17.2]} 41. Kg3 {[%clk
0:00:29.3]} 41... Be7 {[%clk 0:01:12.1]} 42. b5 {[%clk 0:00:19.7]} 42... Bd8
{[%clk 0:01:11.8]} 43. Kf2 {[%clk 0:00:19.8]} 43... Ba5 {[%clk 0:01:09.5]} 44.
Ke2 {[%clk 0:00:20]} 44... h5 {[%clk 0:01:08]} 45. h3 {[%clk 0:00:19.2]} 45...
Bb4 {[%clk 0:01:08.3]} 46. Kd1 {[%clk 0:00:19.1]} 46... hxg4 {[%clk 0:01:06.3]}
47. hxg4 {[%clk 0:00:20.1]} 47... Ke7 {[%clk 0:01:08.2]} 48. Kc2 {[%clk
0:00:18.3]} 48... Be1 {[%clk 0:01:09.5]} 49. Bc3 {[%clk 0:00:17.2]} 49... Bf2
{[%clk 0:01:09.6]} 50. Bd2 {[%clk 0:00:18.1]} 50... Bh4 {[%clk 0:01:08.7]} 51.
Kc3 {[%clk 0:00:19.1]} 51... Bf6+ {[%clk 0:01:09.6]} 52. Kc4 {[%clk 0:00:20.2]}
52... Kd7 {[%clk 0:01:01.2]} 53. Bc3 {[%clk 0:00:18]} 53... Bd8 {[%clk
0:01:02.4]} 54. Kd4 {[%clk 0:00:17.3]} 1-0